[Event "*** Titled Tuesday Blitz"]
[Site "Chess.com"]
[Date "2021.03.09"]
[Round "3"]
[White "SameerMujumdar"]
[Black "AlexSuv"]
[Result "1-0"]
[WhiteElo "2354"]
[BlackElo "2521"]
[TimeControl "180+1"]
[EndTime "10:28:27 PST"]
[Termination "SameerMujumdar won on time"]

1. e4 {[%clk 0:03:00.9]} 1... c5 {[%clk 0:03:00.2]} 2. Nf3 {[%clk 0:03:00.7]}
2... e6 {[%clk 0:03:00.8]} 3. d4 {[%clk 0:02:59.7]} 3... cxd4 {[%clk 0:03:01.7]}
4. Nxd4 {[%clk 0:03:00.3]} 4... Nc6 {[%clk 0:03:02.5]} 5. Nc3 {[%clk 0:02:59.5]}
5... Qc7 {[%clk 0:03:02.8]} 6. Be3 {[%clk 0:02:57.4]} 6... a6 {[%clk 0:03:02.3]}
7. Qf3 {[%clk 0:02:57.2]} 7... Nf6 {[%clk 0:03:02.1]} 8. Qg3 {[%clk 0:02:53.3]}
8... Qxg3 {[%clk 0:02:53.6]} 9. hxg3 {[%clk 0:02:52.9]} 9... Bb4 {[%clk
0:02:53.7]} 10. Bd3 {[%clk 0:02:52.1]} 10... d5 {[%clk 0:02:51.9]} 11. Nxc6
{[%clk 0:02:50.7]} 11... bxc6 {[%clk 0:02:51.5]} 12. exd5 {[%clk 0:02:49.7]}
12... cxd5 {[%clk 0:02:50]} 13. Bd2 {[%clk 0:02:49.2]} 13... Bb7 {[%clk
0:02:45.5]} 14. O-O {[%clk 0:02:42.2]} 14... O-O {[%clk 0:02:33]} 15. a3 {[%clk
0:02:41.7]} 15... Bd6 {[%clk 0:02:30.3]} 16. b4 {[%clk 0:02:33.9]} 16... e5
{[%clk 0:02:27.7]} 17. Bg5 {[%clk 0:02:30.6]} 17... e4 {[%clk 0:02:23.2]} 18.
Be2 {[%clk 0:02:30.2]} 18... Be5 {[%clk 0:02:22.4]} 19. Na4 {[%clk 0:02:20.6]}
19... Nd7 {[%clk 0:01:51.4]} 20. Rab1 {[%clk 0:02:00.7]} 20... Bc6 {[%clk
0:01:23.7]} 21. Nc5 {[%clk 0:01:58.1]} 21... Nxc5 {[%clk 0:01:23.9]} 22. bxc5
{[%clk 0:01:59]} 22... Ba4 {[%clk 0:01:24.3]} 23. Rb6 {[%clk 0:01:54.1]} 23...
Bxc2 {[%clk 0:01:17.3]} 24. Rxa6 {[%clk 0:01:46.5]} 24... Rac8 {[%clk
0:01:12.7]} 25. Rc1 {[%clk 0:01:41.7]} 25... Bb3 {[%clk 0:00:59.4]} 26. Bb5
{[%clk 0:01:38.3]} 26... f6 {[%clk 0:00:51.3]} 27. Bd2 {[%clk 0:01:34.4]} 27...
d4 {[%clk 0:00:41.3]} 28. a4 {[%clk 0:01:31.7]} 28... Rc7 {[%clk 0:00:25.7]} 29.
Ba5 {[%clk 0:01:30]} 29... Re7 {[%clk 0:00:25.6]} 30. c6 {[%clk 0:01:28.9]}
30... Bc7 {[%clk 0:00:20.1]} 31. Bb4 {[%clk 0:01:28.2]} 31... Rfe8 {[%clk
0:00:17.1]} 32. Bxe7 {[%clk 0:01:27.8]} 32... Rxe7 {[%clk 0:00:18]} 33. Bc4+
{[%clk 0:01:25.9]} 33... Bxc4 {[%clk 0:00:18.3]} 34. Rxc4 {[%clk 0:01:26.8]}
34... e3 {[%clk 0:00:18.9]} 35. Kf1 {[%clk 0:01:06.3]} 35... e2+ {[%clk
0:00:13.1]} 36. Ke1 {[%clk 0:01:06.5]} 36... d3 {[%clk 0:00:10.4]} 37. Rd4
{[%clk 0:01:06.9]} 37... Re5 {[%clk 0:00:02.7]} 38. Rxd3 {[%clk 0:01:05.4]}
38... h5 {[%clk 0:00:01.2]} 39. Re3 {[%clk 0:01:03.2]} 1-0

[Event "*** Titled Tuesday Blitz"]
[Site "Chess.com"]
[Date "2021.03.09"]
[Round "3"]
[White "anon102030"]
[Black "Leo_C"]
[Result "1-0"]
[WhiteElo "2695"]
[BlackElo "2440"]
[TimeControl "180+1"]
[EndTime "10:28:29 PST"]
[Termination "anon102030 won by resignation"]

1. e4 {[%clk 0:03:00.9]} 1... c6 {[%clk 0:02:59.6]} 2. d3 {[%clk 0:03:00.5]}
2... d5 {[%clk 0:02:59.3]} 3. Nd2 {[%clk 0:03:01.2]} 3... e5 {[%clk 0:02:57.5]}
4. g3 {[%clk 0:02:59.7]} 4... Nf6 {[%clk 0:02:56.2]} 5. Bg2 {[%clk 0:02:57.5]}
5... Bd6 {[%clk 0:02:55.6]} 6. Ngf3 {[%clk 0:02:55.6]} 6... O-O {[%clk
0:02:54.8]} 7. O-O {[%clk 0:02:56.1]} 7... a5 {[%clk 0:02:52.2]} 8. a4 {[%clk
0:02:53.6]} 8... Na6 {[%clk 0:02:51.5]} 9. b3 {[%clk 0:02:51.6]} 9... Nc5 {[%clk
0:02:51]} 10. Re1 {[%clk 0:02:48.1]} 10... Re8 {[%clk 0:02:45.5]} 11. Bb2 {[%clk
0:02:48]} 11... d4 {[%clk 0:02:45.6]} 12. h3 {[%clk 0:02:46.1]} 12... b5 {[%clk
0:02:38]} 13. Nh4 {[%clk 0:02:36.3]} 13... g6 {[%clk 0:02:33.2]} 14. Ba3 {[%clk
0:02:30.3]} 14... Qe7 {[%clk 0:02:03.6]} 15. Kh2 {[%clk 0:02:27.1]} 15... b4
{[%clk 0:01:55.5]} 16. Bc1 {[%clk 0:02:25.8]} 16... Ba6 {[%clk 0:01:55.5]} 17.
Nhf3 {[%clk 0:02:20.6]} 17... Nh5 {[%clk 0:01:47.4]} 18. Ng1 {[%clk 0:02:14.8]}
18... Ng7 {[%clk 0:01:46]} 19. Ne2 {[%clk 0:02:13.4]} 19... Nge6 {[%clk
0:01:42.3]} 20. Rf1 {[%clk 0:02:11.2]} 20... Qc7 {[%clk 0:01:36.8]} 21. Kh1
{[%clk 0:02:09.9]} 21... Rf8 {[%clk 0:01:35.9]} 22. Nf3 {[%clk 0:02:09.6]} 22...
f5 {[%clk 0:01:33.1]} 23. exf5 {[%clk 0:02:05.6]} 23... gxf5 {[%clk 0:01:32.2]}
24. Nh4 {[%clk 0:01:56.7]} 24... Rf7 {[%clk 0:01:22.6]} 25. f4 {[%clk
0:01:55.8]} 25... e4 {[%clk 0:00:53.3]} 26. dxe4 {[%clk 0:01:41.4]} 26... fxe4
{[%clk 0:00:52.1]} 27. Nxd4 {[%clk 0:01:35.8]} 27... Nxd4 {[%clk 0:00:45.5]} 28.
Qxd4 {[%clk 0:01:36.7]} 28... Bxf1 {[%clk 0:00:43.1]} 29. Bxf1 {[%clk
0:01:37.6]} 29... Rd8 {[%clk 0:00:36.8]} 30. Bb2 {[%clk 0:01:32.1]} 30... Kf8
{[%clk 0:00:16.8]} 31. Bc4 {[%clk 0:01:25.6]} 31... Bxf4 {[%clk 0:00:14.8]} 32.
Qxc5+ {[%clk 0:01:21]} 32... Bd6 {[%clk 0:00:14.3]} 33. Qh5 {[%clk 0:01:15.2]}
33... Bxg3 {[%clk 0:00:14.2]} 34. Nf5 {[%clk 0:00:52.2]} 34... Be5 {[%clk
0:00:11.2]} 35. Bxe5 {[%clk 0:00:48.8]} 1-0

[Event "*** Titled Tuesday Blitz"]
[Site "Chess.com"]
[Date "2021.03.09"]
[Round "3"]
[White "Cherone"]
[Black "PetrolulSah"]
[Result "0-1"]
[WhiteElo "2476"]
[BlackElo "2201"]
[TimeControl "180+1"]
[EndTime "10:28:30 PST"]
[Termination "PetrolulSah won on time"]

1. d4 {[%clk 0:03:00.9]} 1... Nf6 {[%clk 0:02:59.1]} 2. Nf3 {[%clk 0:02:59.6]}
2... d5 {[%clk 0:02:55.7]} 3. Bf4 {[%clk 0:02:59]} 3... g6 {[%clk 0:02:54.3]} 4.
e3 {[%clk 0:02:54.8]} 4... Bg7 {[%clk 0:02:54.3]} 5. c4 {[%clk 0:02:53.6]} 5...
O-O {[%clk 0:02:52]} 6. Nc3 {[%clk 0:02:53.1]} 6... c5 {[%clk 0:02:51.6]} 7.
dxc5 {[%clk 0:02:16.6]} 7... Qa5 {[%clk 0:02:40.3]} 8. Qa4 {[%clk 0:02:01.3]}
8... Qxa4 {[%clk 0:02:38.3]} 9. Nxa4 {[%clk 0:02:01.1]} 9... Ne4 {[%clk
0:02:38.8]} 10. cxd5 {[%clk 0:01:55.6]} 10... Bd7 {[%clk 0:02:36.1]} 11. c6
{[%clk 0:01:37]} 11... bxc6 {[%clk 0:02:32.8]} 12. Be5 {[%clk 0:01:12.2]} 12...
cxd5 {[%clk 0:02:25.9]} 13. Bxg7 {[%clk 0:01:11.7]} 13... Kxg7 {[%clk
0:02:23.7]} 14. Nc3 {[%clk 0:01:11.3]} 14... Nxc3 {[%clk 0:02:19.6]} 15. bxc3
{[%clk 0:01:12.2]} 15... Nc6 {[%clk 0:02:19.2]} 16. c4 {[%clk 0:01:10.5]} 16...
Nb4 {[%clk 0:02:02.9]} 17. Rb1 {[%clk 0:01:05.7]} 17... Rab8 {[%clk 0:01:57.1]}
18. Kd2 {[%clk 0:00:50.6]} 18... Nxa2 {[%clk 0:01:46.3]} 19. Be2 {[%clk
0:00:25.1]} 19... dxc4 {[%clk 0:01:06.9]} 20. Bxc4 {[%clk 0:00:20.5]} 20... Rfd8
{[%clk 0:01:02.5]} 21. Rxb8 {[%clk 0:00:17.6]} 21... Rxb8 {[%clk 0:00:58.4]} 22.
Ra1 {[%clk 0:00:17.7]} 22... Rb2+ {[%clk 0:00:53.9]} 23. Ke1 {[%clk 0:00:17.1]}
23... Be6 {[%clk 0:00:53.2]} 24. Bxe6 {[%clk 0:00:14.8]} 24... fxe6 {[%clk
0:00:52.7]} 25. Ne5 {[%clk 0:00:12.5]} 25... a5 {[%clk 0:00:46.9]} 26. Nc4
{[%clk 0:00:10.7]} 26... Rc2 {[%clk 0:00:44.2]} 27. Nxa5 {[%clk 0:00:05.4]}
27... Nc3 {[%clk 0:00:44.3]} 28. Nb3 {[%clk 0:00:03.1]} 28... Ne4 {[%clk
0:00:39.9]} 0-1

[Event "*** Titled Tuesday Blitz"]
[Site "Chess.com"]
[Date "2021.03.09"]
[Round "3"]
[White "SnekkerAndersen"]
[Black "GoltsevDmitry2000"]
[Result "0-1"]
[WhiteElo "2405"]
[BlackElo "2721"]
[TimeControl "180+1"]
[EndTime "10:28:31 PST"]
[Termination "GoltsevDmitry2000 won on time"]

1. d4 {[%clk 0:02:58.4]} 1... Nf6 {[%clk 0:03:00.1]} 2. Bf4 {[%clk 0:02:48.2]}
2... e6 {[%clk 0:03:00.5]} 3. e3 {[%clk 0:02:47.3]} 3... Nc6 {[%clk 0:03:00.8]}
4. Nf3 {[%clk 0:02:45.8]} 4... Be7 {[%clk 0:03:01.3]} 5. Bd3 {[%clk 0:02:44.2]}
5... Nh5 {[%clk 0:03:00.8]} 6. Bg3 {[%clk 0:02:43.1]} 6... Nxg3 {[%clk
0:03:00.2]} 7. hxg3 {[%clk 0:02:44]} 7... h6 {[%clk 0:03:01.1]} 8. c3 {[%clk
0:02:42.9]} 8... b6 {[%clk 0:03:01.6]} 9. Qe2 {[%clk 0:02:42.7]} 9... Bb7 {[%clk
0:03:02.2]} 10. Nbd2 {[%clk 0:02:43.2]} 10... a5 {[%clk 0:03:01.7]} 11. e4
{[%clk 0:02:43.2]} 11... d6 {[%clk 0:03:01.5]} 12. O-O {[%clk 0:02:41.7]} 12...
O-O {[%clk 0:03:00.6]} 13. e5 {[%clk 0:02:41.9]} 13... dxe5 {[%clk 0:03:00.7]}
14. Nxe5 {[%clk 0:02:42.8]} 14... Nxe5 {[%clk 0:03:00.6]} 15. Qxe5 {[%clk
0:02:43.7]} 15... Bf6 {[%clk 0:02:59.9]} 16. Qe2 {[%clk 0:02:42.8]} 16... c5
{[%clk 0:03:00.3]} 17. dxc5 {[%clk 0:02:41.3]} 17... bxc5 {[%clk 0:03:01.2]} 18.
Be4 {[%clk 0:02:41.9]} 18... Qb6 {[%clk 0:03:00.5]} 19. Nc4 {[%clk 0:02:38]}
19... Qa6 {[%clk 0:02:53.9]} 20. Bxb7 {[%clk 0:02:20.7]} 20... Qxb7 {[%clk
0:02:54.8]} 21. Rad1 {[%clk 0:02:21]} 21... Rfd8 {[%clk 0:02:53.9]} 22. Nd6
{[%clk 0:02:09.5]} 22... Qc6 {[%clk 0:02:51.7]} 23. Ne4 {[%clk 0:02:09.3]} 23...
Be7 {[%clk 0:02:50.4]} 24. f3 {[%clk 0:02:02.1]} 24... Qa4 {[%clk 0:02:49.2]}
25. b3 {[%clk 0:02:00.5]} 25... Qc6 {[%clk 0:02:48.7]} 26. Rxd8+ {[%clk
0:01:56.7]} 26... Rxd8 {[%clk 0:02:48.1]} 27. Rd1 {[%clk 0:01:56.1]} 27... Rd5
{[%clk 0:02:47.6]} 28. Rxd5 {[%clk 0:01:51.3]} 28... exd5 {[%clk 0:02:48.5]} 29.
Nf2 {[%clk 0:01:49.9]} 29... Bf6 {[%clk 0:02:48.4]} 30. c4 {[%clk 0:01:50.2]}
30... Bd4 {[%clk 0:02:47]} 31. cxd5 {[%clk 0:01:46.3]} 31... Qxd5 {[%clk
0:02:47.9]} 32. Kh2 {[%clk 0:01:46.8]} 32... Qh5+ {[%clk 0:02:44.4]} 33. Nh3
{[%clk 0:01:46.6]} 33... Qg6 {[%clk 0:02:44.8]} 34. Nf4 {[%clk 0:01:41.2]} 34...
Qb1 {[%clk 0:02:42.2]} 35. g4 {[%clk 0:01:29.6]} 35... g6 {[%clk 0:02:24.5]} 36.
Nh3 {[%clk 0:00:49.1]} 36... Bb2 {[%clk 0:02:20.5]} 37. f4 {[%clk 0:00:46.5]}
37... Qxa2 {[%clk 0:02:19.9]} 38. Qc2 {[%clk 0:00:42.2]} 38... Qa3 {[%clk
0:02:14.9]} 39. f5 {[%clk 0:00:41.6]} 39... g5 {[%clk 0:02:15.2]} 40. Nf2 {[%clk
0:00:35]} 40... Be5+ {[%clk 0:02:11.1]} 41. g3 {[%clk 0:00:34.6]} 41... a4
{[%clk 0:02:08.9]} 42. Nd3 {[%clk 0:00:20.2]} 42... Qxb3 {[%clk 0:02:05]} 43.
Qe2 {[%clk 0:00:19.6]} 43... Bd6 {[%clk 0:01:43.4]} 44. Qe8+ {[%clk 0:00:15.2]}
44... Kg7 {[%clk 0:01:43.5]} 45. Nxc5 {[%clk 0:00:09.6]} 45... Qc2+ {[%clk
0:01:41.2]} 46. Kh3 {[%clk 0:00:09.9]} 46... Qxc5 {[%clk 0:01:41]} 47. f6+
{[%clk 0:00:10.4]} 47... Kxf6 {[%clk 0:01:40.6]} 48. Qh8+ {[%clk 0:00:09.6]}
48... Ke7 {[%clk 0:01:40.9]} 0-1

[Event "*** Titled Tuesday Blitz"]
[Site "Chess.com"]
[Date "2021.03.09"]
[Round "3"]
[White "S-Fazulyanov"]
[Black "FMalexhdez"]
[Result "1-0"]
[WhiteElo "2498"]
[BlackElo "2180"]
[TimeControl "180+1"]
[EndTime "10:28:31 PST"]
[Termination "S-Fazulyanov won by resignation"]

1. d4 {[%clk 0:03:00]} 1... Nf6 {[%clk 0:02:59.2]} 2. Nf3 {[%clk 0:03:00.4]}
2... e6 {[%clk 0:02:59]} 3. e3 {[%clk 0:02:59.4]} 3... b6 {[%clk 0:02:59]} 4. b3
{[%clk 0:02:59.9]} 4... Bb7 {[%clk 0:02:59.3]} 5. Bb2 {[%clk 0:03:00.4]} 5... c5
{[%clk 0:02:59.6]} 6. Bd3 {[%clk 0:03:00.5]} 6... d6 {[%clk 0:02:59.9]} 7. O-O
{[%clk 0:03:00.8]} 7... Nbd7 {[%clk 0:03:00.3]} 8. c4 {[%clk 0:03:00.9]} 8...
Be7 {[%clk 0:03:00.7]} 9. Nbd2 {[%clk 0:02:59.2]} 9... O-O {[%clk 0:02:59.1]}
10. e4 {[%clk 0:02:59.2]} 10... cxd4 {[%clk 0:02:58.1]} 11. Nxd4 {[%clk
0:02:59.3]} 11... Ne5 {[%clk 0:02:46.4]} 12. Bc2 {[%clk 0:02:57.7]} 12... Ng6
{[%clk 0:02:37.2]} 13. Qe2 {[%clk 0:02:52.3]} 13... d5 {[%clk 0:02:32.4]} 14.
cxd5 {[%clk 0:02:39.9]} 14... exd5 {[%clk 0:02:31.7]} 15. e5 {[%clk 0:02:40.2]}
15... Nd7 {[%clk 0:02:09.1]} 16. Bxg6 {[%clk 0:02:39.7]} 16... hxg6 {[%clk
0:02:04.2]} 17. f4 {[%clk 0:02:40.1]} 17... Nc5 {[%clk 0:02:02.9]} 18. Rad1
{[%clk 0:02:39]} 18... Ne6 {[%clk 0:01:59.3]} 19. Nxe6 {[%clk 0:02:36]} 19...
fxe6 {[%clk 0:01:57]} 20. Qe3 {[%clk 0:02:32]} 20... Rc8 {[%clk 0:01:45.8]} 21.
Nf3 {[%clk 0:02:30.7]} 21... Rc2 {[%clk 0:01:39.7]} 22. Rd2 {[%clk 0:02:25]}
22... Rxd2 {[%clk 0:01:22.9]} 23. Qxd2 {[%clk 0:02:17.2]} 23... d4 {[%clk
0:01:07.5]} 24. Bxd4 {[%clk 0:01:58.1]} 24... Qd5 {[%clk 0:01:05.7]} 25. Rd1
{[%clk 0:01:41.4]} 25... Bc5 {[%clk 0:00:57.8]} 26. Bxc5 {[%clk 0:01:33]} 26...
Qxc5+ {[%clk 0:00:57.3]} 27. Qd4 {[%clk 0:01:31.9]} 27... Bxf3 {[%clk 0:00:47]}
28. Qxc5 {[%clk 0:01:23.3]} 28... bxc5 {[%clk 0:00:45.2]} 29. gxf3 {[%clk
0:01:23.6]} 29... Rxf4 {[%clk 0:00:45.4]} 30. Kf2 {[%clk 0:01:23.2]} 30... Rf5
{[%clk 0:00:41]} 31. Rd7 {[%clk 0:01:22.7]} 31... Rxe5 {[%clk 0:00:39.5]} 32.
Rxa7 {[%clk 0:01:22.7]} 32... Rd5 {[%clk 0:00:33]} 33. Ke3 {[%clk 0:01:20.8]}
33... Kh7 {[%clk 0:00:33.3]} 34. a4 {[%clk 0:01:20.2]} 34... Kh6 {[%clk
0:00:32.7]} 35. a5 {[%clk 0:01:18]} 35... Rd1 {[%clk 0:00:27.7]} 36. Rc7 {[%clk
0:01:14.5]} 36... Rc1 {[%clk 0:00:23]} 37. Kd2 {[%clk 0:01:08.6]} 37... Rh1
{[%clk 0:00:19.8]} 38. Rxc5 {[%clk 0:01:07.5]} 38... Rxh2+ {[%clk 0:00:20.2]}
39. Ke3 {[%clk 0:01:07.9]} 39... Ra2 {[%clk 0:00:18.1]} 40. b4 {[%clk
0:01:06.6]} 40... g5 {[%clk 0:00:16.8]} 41. Rc6 {[%clk 0:01:06]} 41... Kg6
{[%clk 0:00:12.8]} 42. Rxe6+ {[%clk 0:01:06.2]} 42... Kf5 {[%clk 0:00:13.5]} 43.
Rb6 {[%clk 0:01:05]} 43... g4 {[%clk 0:00:13.5]} 44. fxg4+ {[%clk 0:01:05.3]}
44... Kxg4 {[%clk 0:00:13.1]} 45. Rg6+ {[%clk 0:01:05.9]} 45... Kf5 {[%clk
0:00:13.6]} 46. Rxg7 {[%clk 0:01:06.8]} 1-0

[Event "*** Titled Tuesday Blitz"]
[Site "Chess.com"]
[Date "2021.03.09"]
[Round "3"]
[White "Kostukov_Alex"]
[Black "cukin84"]
[Result "1-0"]
[WhiteElo "2323"]
[BlackElo "2106"]
[TimeControl "180+1"]
[EndTime "10:28:31 PST"]
[Termination "Kostukov_Alex won by checkmate"]

1. e4 {[%clk 0:03:00.9]} 1... c6 {[%clk 0:02:59.5]} 2. g3 {[%clk 0:02:58.5]}
2... d5 {[%clk 0:02:59.5]} 3. d3 {[%clk 0:02:57.5]} 3... dxe4 {[%clk 0:02:58.4]}
4. dxe4 {[%clk 0:02:57.7]} 4... Qxd1+ {[%clk 0:02:58.3]} 5. Kxd1 {[%clk
0:02:58.6]} 5... e5 {[%clk 0:02:58.2]} 6. f3 {[%clk 0:02:58.7]} 6... Bc5 {[%clk
0:02:57]} 7. Nd2 {[%clk 0:02:52.1]} 7... Be6 {[%clk 0:02:54.6]} 8. Bh3 {[%clk
0:02:51.7]} 8... Ke7 {[%clk 0:02:39.5]} 9. Bxe6 {[%clk 0:02:43.5]} 9... Kxe6
{[%clk 0:02:39.6]} 10. Nb3 {[%clk 0:02:41.7]} 10... Bb6 {[%clk 0:02:36.5]} 11.
Ke2 {[%clk 0:02:40.2]} 11... Na6 {[%clk 0:02:32.8]} 12. c3 {[%clk 0:02:30.1]}
12... Ne7 {[%clk 0:02:31.8]} 13. Nh3 {[%clk 0:02:26.8]} 13... f6 {[%clk
0:02:31]} 14. a4 {[%clk 0:02:24.3]} 14... Nc5 {[%clk 0:02:30.4]} 15. Nxc5+
{[%clk 0:02:18.7]} 15... Bxc5 {[%clk 0:02:30.3]} 16. b4 {[%clk 0:02:17.9]} 16...
Bd6 {[%clk 0:02:25.9]} 17. Be3 {[%clk 0:02:12.1]} 17... a5 {[%clk 0:02:24.7]}
18. bxa5 {[%clk 0:01:58.4]} 18... Rxa5 {[%clk 0:02:23.5]} 19. Rhb1 {[%clk
0:01:51.8]} 19... Rb8 {[%clk 0:02:14.4]} 20. Bb6 {[%clk 0:01:12.2]} 20... Ra6
{[%clk 0:02:10.5]} 21. c4 {[%clk 0:00:59.6]} 21... Nc8 {[%clk 0:02:02.4]} 22.
Be3 {[%clk 0:00:45]} 22... Ra5 {[%clk 0:01:56.1]} 23. Nf2 {[%clk 0:00:38.9]}
23... Bc5 {[%clk 0:01:54.9]} 24. Bd2 {[%clk 0:00:35.2]} 24... Ra6 {[%clk
0:01:49.3]} 25. Nd3 {[%clk 0:00:31.9]} 25... Bd4 {[%clk 0:01:48.7]} 26. Bc3
{[%clk 0:00:18.5]} 26... Bxc3 {[%clk 0:01:47.3]} 27. Nc5+ {[%clk 0:00:18.9]}
27... Kf7 {[%clk 0:01:41]} 28. Nxa6 {[%clk 0:00:19.2]} 28... Ra8 {[%clk
0:01:28.4]} 29. Rxb7+ {[%clk 0:00:18.8]} 29... Kg6 {[%clk 0:01:27.8]} 30. Rc1
{[%clk 0:00:18.6]} 30... Bd4 {[%clk 0:01:20.8]} 31. Nc7 {[%clk 0:00:16.4]} 31...
Rxa4 {[%clk 0:01:20.3]} 32. Ne6 {[%clk 0:00:16.8]} 32... Ra2+ {[%clk 0:01:19.6]}
33. Kf1 {[%clk 0:00:15.8]} 33... Be3 {[%clk 0:01:15.1]} 34. Rxg7+ {[%clk
0:00:14.6]} 34... Kh6 {[%clk 0:01:15.3]} 35. Rd1 {[%clk 0:00:14.1]} 35... Nb6
{[%clk 0:01:12.7]} 36. g4 {[%clk 0:00:11.7]} 36... Rf2+ {[%clk 0:01:07.9]} 37.
Ke1 {[%clk 0:00:11.4]} 37... Rxh2 {[%clk 0:01:07]} 38. Rf7 {[%clk 0:00:11.4]}
38... Rh1+ {[%clk 0:00:56.8]} 39. Ke2 {[%clk 0:00:10.9]} 39... Rxd1 {[%clk
0:00:56.5]} 40. Rxf6# {[%clk 0:00:10.2]} 1-0

[Event "*** Titled Tuesday Blitz"]
[Site "Chess.com"]
[Date "2021.03.09"]
[Round "3"]
[White "c_r_e_e_p_e_r"]
[Black "LionChessClub"]
[Result "0-1"]
[WhiteElo "2410"]
[BlackElo "2608"]
[TimeControl "180+1"]
[EndTime "10:28:32 PST"]
[Termination "LionChessClub won by checkmate"]

1. e4 {[%clk 0:03:00.9]} 1... c5 {[%clk 0:02:59.2]} 2. Nf3 {[%clk 0:03:00]} 2...
g6 {[%clk 0:02:55.4]} 3. c3 {[%clk 0:02:58.8]} 3... d5 {[%clk 0:02:46.6]} 4.
exd5 {[%clk 0:02:59.7]} 4... Qxd5 {[%clk 0:02:47.2]} 5. d4 {[%clk 0:02:59.5]}
5... Bg7 {[%clk 0:02:47.4]} 6. Be3 {[%clk 0:02:58.9]} 6... cxd4 {[%clk
0:02:40.3]} 7. cxd4 {[%clk 0:02:58.1]} 7... Nf6 {[%clk 0:02:40.3]} 8. Nc3 {[%clk
0:02:58.2]} 8... Qd8 {[%clk 0:02:40.3]} 9. Bc4 {[%clk 0:02:56.5]} 9... O-O
{[%clk 0:02:40.2]} 10. O-O {[%clk 0:02:56.8]} 10... Nbd7 {[%clk 0:02:36.3]} 11.
Ne5 {[%clk 0:02:56.4]} 11... Nb6 {[%clk 0:02:35.8]} 12. Bb3 {[%clk 0:02:56.7]}
12... Nbd5 {[%clk 0:02:35.5]} 13. Qf3 {[%clk 0:02:57.3]} 13... e6 {[%clk
0:02:29.7]} 14. Bg5 {[%clk 0:02:53.2]} 14... h6 {[%clk 0:02:26.8]} 15. Bh4
{[%clk 0:02:51]} 15... g5 {[%clk 0:02:14.3]} 16. Bg3 {[%clk 0:02:50.7]} 16... b6
{[%clk 0:01:58.3]} 17. Nc6 {[%clk 0:02:40.6]} 17... Qd7 {[%clk 0:01:55.3]} 18.
Nxd5 {[%clk 0:02:40.5]} 18... Nxd5 {[%clk 0:01:56.2]} 19. Bxd5 {[%clk
0:02:36.1]} 19... exd5 {[%clk 0:01:56.7]} 20. Ne5 {[%clk 0:02:31.7]} 20... Qf5
{[%clk 0:01:41.3]} 21. Qxd5 {[%clk 0:02:15.7]} 21... Ba6 {[%clk 0:01:41.2]} 22.
Rfd1 {[%clk 0:02:08.9]} 22... Rfd8 {[%clk 0:01:40.9]} 23. Qb3 {[%clk 0:02:06.3]}
23... Bb7 {[%clk 0:01:33.6]} 24. f3 {[%clk 0:02:01.9]} 24... Bd5 {[%clk
0:01:32.8]} 25. Qe3 {[%clk 0:02:00.5]} 25... Rac8 {[%clk 0:01:32.2]} 26. Rac1
{[%clk 0:01:58.4]} 26... Rc2 {[%clk 0:01:31.6]} 27. Rxc2 {[%clk 0:01:39]} 27...
Qxc2 {[%clk 0:01:32.5]} 28. Qc1 {[%clk 0:01:39.3]} 28... Rc8 {[%clk 0:01:30.9]}
29. Qxc2 {[%clk 0:01:06.9]} 29... Rxc2 {[%clk 0:01:31.8]} 30. Rb1 {[%clk
0:00:54.2]} 30... Bxa2 {[%clk 0:01:29.4]} 31. Ra1 {[%clk 0:00:54.6]} 31... Rxb2
{[%clk 0:01:28.7]} 32. Nc6 {[%clk 0:00:50.6]} 32... a5 {[%clk 0:01:17.1]} 33.
Bc7 {[%clk 0:00:42]} 33... Rc2 {[%clk 0:01:07]} 34. Ne7+ {[%clk 0:00:40.5]}
34... Kf8 {[%clk 0:01:01.9]} 35. Bxb6 {[%clk 0:00:37.5]} 35... Kxe7 {[%clk
0:01:00]} 36. Rxa2 {[%clk 0:00:37.8]} 36... Rxa2 {[%clk 0:00:58.7]} 37. Bc5+
{[%clk 0:00:37.2]} 37... Ke6 {[%clk 0:00:58.3]} 38. h3 {[%clk 0:00:37.5]} 38...
Kd5 {[%clk 0:00:58.6]} 39. Kh2 {[%clk 0:00:37.7]} 39... Bxd4 {[%clk 0:00:59.2]}
40. Bf8 {[%clk 0:00:37.7]} 40... Be5+ {[%clk 0:00:59.5]} 41. Kg1 {[%clk
0:00:35.3]} 41... Bg3 {[%clk 0:01:00.1]} 42. Kf1 {[%clk 0:00:34]} 42... a4
{[%clk 0:01:01]} 43. Bxh6 {[%clk 0:00:33]} 43... a3 {[%clk 0:01:00]} 44. Bxg5
{[%clk 0:00:33.2]} 44... Ra1+ {[%clk 0:00:57.4]} 45. Ke2 {[%clk 0:00:32.9]}
45... Re1+ {[%clk 0:00:58.1]} 46. Kd3 {[%clk 0:00:31.8]} 46... a2 {[%clk
0:00:59]} 47. Bf6 {[%clk 0:00:32.2]} 47... Be5 {[%clk 0:00:59.4]} 48. Bd8 {[%clk
0:00:27.6]} 48... a1=Q {[%clk 0:00:59.1]} 49. Bc7 {[%clk 0:00:27.8]} 49... Qd1#
{[%clk 0:00:56.9]} 0-1

[Event "*** Titled Tuesday Blitz"]
[Site "Chess.com"]
[Date "2021.03.09"]
[Round "3"]
[White "Evachess2006"]
[Black "DrCeltic"]
[Result "0-1"]
[WhiteElo "1589"]
[BlackElo "2484"]
[TimeControl "180+1"]
[EndTime "10:28:32 PST"]
[Termination "DrCeltic won on time"]

1. e4 {[%clk 0:03:00.7]} 1... c5 {[%clk 0:02:59.8]} 2. c3 {[%clk 0:02:53.6]}
2... Nf6 {[%clk 0:02:59.4]} 3. e5 {[%clk 0:02:53.3]} 3... Nd5 {[%clk 0:02:59.9]}
4. d4 {[%clk 0:02:53.6]} 4... cxd4 {[%clk 0:03:00.4]} 5. Nf3 {[%clk 0:02:53.4]}
5... e6 {[%clk 0:03:01.3]} 6. cxd4 {[%clk 0:02:50.1]} 6... d6 {[%clk 0:03:01.2]}
7. Bc4 {[%clk 0:02:44.5]} 7... Be7 {[%clk 0:03:00.9]} 8. Bd2 {[%clk 0:02:42.2]}
8... O-O {[%clk 0:02:59.4]} 9. O-O {[%clk 0:02:40.4]} 9... b6 {[%clk 0:02:56.9]}
10. Nc3 {[%clk 0:02:38.6]} 10... Nxc3 {[%clk 0:02:53.8]} 11. Bxc3 {[%clk
0:02:36.8]} 11... dxe5 {[%clk 0:02:30.2]} 12. Nxe5 {[%clk 0:02:23]} 12... Bb7
{[%clk 0:02:28.9]} 13. Qg4 {[%clk 0:01:29.5]} 13... Nd7 {[%clk 0:02:14.1]} 14.
Nxf7 {[%clk 0:00:57.5]} 14... Rxf7 {[%clk 0:02:06.8]} 15. Qxe6 {[%clk 0:00:53]}
15... Qe8 {[%clk 0:01:49.4]} 16. Rae1 {[%clk 0:00:30.5]} 16... Rc8 {[%clk
0:01:24.2]} 17. Bb3 {[%clk 0:00:11]} 17... Kf8 {[%clk 0:01:20.6]} 18. Qxf7+
{[%clk 0:00:04.1]} 18... Qxf7 {[%clk 0:01:19.8]} 19. Bxf7 {[%clk 0:00:05]} 19...
Kxf7 {[%clk 0:01:20.7]} 20. Re3 {[%clk 0:00:04]} 20... Nf6 {[%clk 0:01:19.3]}
21. Rfe1 {[%clk 0:00:03.4]} 21... Bd6 {[%clk 0:01:16.8]} 22. Re6 {[%clk
0:00:02.8]} 22... Re8 {[%clk 0:01:09]} 23. Rxe8 {[%clk 0:00:01.9]} 23... Nxe8
{[%clk 0:01:08.8]} 24. f3 {[%clk 0:00:02.3]} 24... Bd5 {[%clk 0:01:06.1]} 25. g3
{[%clk 0:00:01.9]} 25... Nc7 {[%clk 0:01:05.1]} 26. Kf2 {[%clk 0:00:02]} 26...
Ne6 {[%clk 0:01:04.9]} 27. a3 {[%clk 0:00:02.2]} 27... Ng5 {[%clk 0:01:04.5]}
28. Rc1 {[%clk 0:00:02.5]} 28... Nxf3 {[%clk 0:01:02.7]} 29. Be1 {[%clk
0:00:02.6]} 29... Ng5 {[%clk 0:01:00.9]} 30. Bd2 {[%clk 0:00:02.3]} 30... Ne4+
{[%clk 0:01:00.8]} 31. Ke3 {[%clk 0:00:02.2]} 31... Nf6 {[%clk 0:00:57.7]} 32.
Rf1 {[%clk 0:00:02.1]} 32... Kg6 {[%clk 0:00:56.8]} 0-1